Workbook

Sheet Cálculo secciones CC
A1: Cálculo automático de secciones CC | C1: A W G - C O B R E | H1: R T B - C O B R E | M1: RTB - ALUMINIO
C2: BATERIAS | E2: Placas | H2: PANELES | J2: REGULADOR-BAT | M2: PANELES | P2: AWG | S2: R T B
C3: MOLINETE | E3: MidNite | H3: REGULADOR | M3: REGULADOR
A4: Datos constantes | B4: Nº de cables (+ y -) | C4: 2 | E4: 2 | H4: 2 | J4: 2 | M4: 2
B5: Resistividad del Conductor | C5: Cu | D5: =1/IF($S$29=1,56,IF($S$29=2,54,IF($S$29=3,52,IF($S$29=4,50,48)))) -> 0.0179 | E5: Cu | F5: =1/IF($S$29=1,56,IF($S$29=2,54,IF($S$29=3,52,IF($S$29=4,50,48)))) -> 0.0179 | H5: Cu | I5: =1/IF($S$29=1,56,IF($S$29=2,54,IF($S$29=3,52,IF($S$29=4,50,48)))) -> 0.0179 | J5: Cu | K5: =1/IF($S$29=1,56,IF($S$29=2,54,IF($S$29=3,52,IF($S$29=4,50,48)))) -> 0.0179 | M5: Al | N5: =1/IF($S$29=1,35,IF($S$29=2,33.75,IF($S$29=3,32.5,IF($S$29=4,31.25,30)))) -> 0.0286 | P5: AWG 13 | Q5: 2.63 mm2 | S5: 0.75 mm2
A6: ...la potencia de trabajo en W | B6: Vatios Totales | C6: 1000 w | E6: 780 w | H6: 1600 w | J6: 1600 w | M6: 1600 w | P6: AWG 12 | Q6: 3.31 mm2 | S6: 1.00 mm2
A7: ...longitud de un punto a otro | B7: Metros de Cable | C7: 11.40 m | E7: 5.10 m | H7: 52.00 m | J7: 1.30 m | M7: 52.00 m | P7: AWG 11 | Q7: 4.15 mm2 | S7: 1.50 mm2
A8: ...en voltios, siempre > 0 | B8: Caida de Tension en % | C8: 3.00% | E8: 1.00% | H8: 2.00% | J8: 1.00% | M8: 2.00% | P8: AWG 10 | Q8: 5.27 mm2 | S8: 2.50 mm2
A9: ...voltaje de trabajo | B9: Voltaje de Trabajo | C9: 12 v | E9: 24 v | H9: 48 v | J9: 24 v | M9: 48 v | P9: AWG 9 | Q9: 6.62 mm2 | S9: 4.00 mm2
A10: Resultados estrictos | B10: Amperios | C10: =C6/C9 -> 83.33 A | E10: =E6/E9 -> 32.50 A | H10: =H6/H9 -> 33.33 A | J10: =J6/J9 -> 66.67 A | M10: =M6/M9 -> 33.33 A | P10: AWG 8 | Q10: 8.35 mm2 | S10: 6.00 mm2
B11: Sección total | C11: =(C4*C7*C10*D5)/(C9*C8/100) -> 94.25 mm2 | E11: =(E4*E7*E10*F5)/(E9*E8/100) -> 24.67 mm2 | H11: =(H4*H7*H10*I5)/(H9*H8/100) -> 64.48 mm2 | J11: =(J4*J7*J10*K5)/(J9*J8/100) -> 12.90 mm2 | M11: =(M4*M7*M10*N5)/(M9*M8/100) -> 103.17 mm2 | P11: AWG 7 | Q11: 10.60 mm2 | S11: 10.00 mm2
A12: Caída de tensión y pérdida real de vatios en función de la sección estricta | B12: Diámetro del cable | C12: =2*SQRT(C11/PI()) -> 10.95 mm | E12: =2*SQRT(E11/PI()) -> 5.60 mm | H12: =2*SQRT(H11/PI()) -> 9.06 mm | J12: =2*SQRT(J11/PI()) -> 4.05 mm | M12: =2*SQRT(M11/PI()) -> 11.46 mm | P12: AWG 6 | Q12: 13.30 mm2 | S12: 16.00 mm2
B13: Caída de Tension (v) | C13: =C9*C8/100 -> 0.36 v | E13: =E9*E8/100 -> 0.24 v | H13: =H9*H8/100 -> 0.96 v | J13: =J9*J8/100 -> 0.24 v | M13: =M9*M8/100 -> 0.96 v | P13: AWG 5 | Q13: 16.80 mm2 | S13: 25.00 mm2
B14: Pérdida de Vatios | C14: =C6*C8/100 -> 30.00 w | E14: =E6*E8/100 -> 7.80 w | H14: =H6*H8/100 -> 32.00 w | J14: =J6*J8/100 -> 16.00 w | M14: =M6*M8/100 -> 32.00 w | P14: AWG 4 | Q14: 21.20 mm2 | S14: 35.00 mm2
A15: Sección varios cables | B15: mm2 de Seccion estricta por cada cable | C15: =C11/C16 -> 94.25 mm2 | E15: =E11/E16 -> 24.67 mm2 | H15: =H11/H16 -> 64.48 mm2 | J15: =J11/J16 -> 12.90 mm2 | M15: =M11/M16 -> 103.17 mm2 | P15: AWG 3 | Q15: 27.00 mm2 | S15: 50.00 mm2
A16: Sección comercial | B16: Mínimo núm. de pares de cable (1 + y 1 -) | C16: =INT(C11/Q21+1) -> 1 | D16: AWG 0000 | E16: =INT(E11/Q21+1) -> 1 | F16: AWG 3 | H16: =INT(H11/S21+1) -> 1 | I16: RBT de | J16: =INT(J11/S21+1) -> 1 | K16: RBT de | M16: =INT(M11/S21+1) -> 1 | N16: RBT de | P16: AWG 2 | Q16: 33.60 mm2 | S16: 70.00 mm2
B17: mm2 de Seccion comercial por cada cable | C17: 107.20 mm2 | E17: 27.00 mm2 | H17: 70.00 mm2 | J17: 16.00 mm2 | M17: 120.00 mm2 | P17: AWG 1 | Q17: 42.40 mm2 | S17: 95.00 mm2
B18: mm2 de Seccion total por polo | C18: =C17*C16 -> 107.20 mm2 | E18: =E17*E16 -> 27.00 mm2 | H18: =H17*H16 -> 70.00 mm2 | J18: =J17*J16 -> 16.00 mm2 | M18: =M16*M17 -> 120.00 mm2 | P18: AWG 0 | Q18: 53.47 mm2 | S18: 120.00 mm2
A19: Resultados definitivos | B19: Diámetro de los cables | C19: =2*SQRT(C17/PI()) -> 11.68 mm | E19: =2*SQRT(E17/PI()) -> 5.86 mm | H19: =2*SQRT(H17/PI()) -> 9.44 mm | J19: =2*SQRT(J17/PI()) -> 4.51 mm | M19: =2*SQRT(M17/PI()) -> 12.36 mm | P19: AWG 00 | Q19: 67.42 mm2 | S19: 150.00 mm2
B20: Caida total de Tensión en Voltios | C20: =C4*C7*C10*D5/C18 -> 0.32 v | E20: =E4*E7*E10*F5/E18 -> 0.22 v | H20: =H4*H7*H10*I5/H18 -> 0.88 v | J20: =J4*J7*J10*K5/J18 -> 0.19 v | M20: =M4*M7*M10*N5/M18 -> 0.83 v | P20: AWG 000 | Q20: 85.00 mm2 | S20: 185.00 mm2
A21: Caída de tensión y pérdida real de vatios en función de la sección requerida | B21: Caida total de Tensión en % | C21: =C20/C9 -> 2.64% | E21: =E20/E9 -> 0.91% | H21: =H20/H9 -> 1.84% | J21: =J20/J9 -> 0.81% | M21: =M20/M9 -> 1.72% | P21: AWG 0000 | Q21: 107.20 mm2 | S21: 240.00 mm2
B22: Pérdida total de Vatios | C22: =C6*C21 -> 26.37 w | E22: =E6*E21 -> 7.13 w | H22: =H6*H21 -> 29.48 w | J22: =J6*J21 -> 12.90 w | M22: =M6*M21 -> 27.51 w
A23: Cambio de sección | B23: Número de pares de cable (1 + y 1 -) | C23: =INT(C11/C24+0.9) -> 2 | D23: AWG 0 | E23: =INT(E11/E24+0.9) -> 10 | F23: AWG 13 | H23: =INT(H11/H24+0.9) -> 2 | I23: RBT de | J23: =INT(J11/J24+0.9) -> 1 | K23: RBT de | M23: =INT(M11/M24+0.9) -> 2 | N23: RBT de | S23: TEMPERATURA
B24: mm2 de Seccion elegida por cada cable | C24: =VLOOKUP(D23,$P$5:$Q$21,2,FALSE) -> 53.47 mm2 | E24: =VLOOKUP(F23,$P$5:$Q$21,2,FALSE) -> 2.63 mm2 | H24: 35.00 mm2 | J24: 25.00 mm2 | M24: 50.00 mm2 | T24: 20º
B25: mm2 de la seccion elegida por polo | C25: =C24*C23 -> 106.94 mm2 | E25: =E24*E23 -> 26.30 mm2 | H25: =H23*H24 -> 70.00 mm2 | J25: =J23*J24 -> 25.00 mm2 | M25: =M23*M24 -> 100.00 mm2 | T25: 30º
A26: Resultados definitivos | B26: Diámetro de los cables | C26: =2*SQRT(C24/PI()) -> 8.25 mm | E26: =2*SQRT(E24/PI()) -> 1.83 mm | H26: =2*SQRT(H24/PI()) -> 6.68 mm | J26: =2*SQRT(J24/PI()) -> 5.64 mm | M26: =2*SQRT(M24/PI()) -> 7.98 mm | T26: 40º
B27: Caida total de Tensión en Voltios | C27: =C4*C7*C10*D5/C25 -> 0.32 v | E27: =E4*E7*E10*F5/E25 -> 0.23 v | H27: =H4*H7*H10*I5/H25 -> 0.88 v | J27: =J4*J7*J10*K5/J25 -> 0.12 v | M27: =M4*M7*M10*N5/M25 -> 0.99 v | T27: 50º
A28: Caída de tensión y pérdida real de vatios en función de la sección elegida | B28: Caida total de Tensión en % | C28: =C27/C9 -> 2.64% | E28: =E27/E9 -> 0.94% | H28: =H27/H9 -> 1.84% | J28: =J27/J9 -> 0.52% | M28: =M27/M9 -> 2.06% | T28: 60º
B29: Pérdida total de Vatios | C29: =C6*C28 -> 26.44 w | E29: =E6*E28 -> 7.32 w | H29: =H6*H28 -> 29.48 w | J29: =J6*J28 -> 8.25 w | M29: =M6*M28 -> 33.02 w | S29: 1
